Workbook

Sheet Sheet1
V2: =SUM(V9:V13) -> 17243.18 | W2: =SUM(AA9:AA13) -> 0
V3: =SUM(V14:V32) -> 99221.14296
V4: =SUM(V2:V3) -> 116464.323
D5: Year | E5: Form | F5: Tax Due | G5: Filed | H5: Filing | I5: NFTL | J5: Estimated CSED | K5: Last Download
D6: 2024/Q1 | E6: 941 | F6: -847 | G6: No | K6: 2 | R6: =0.5% -> 0.005
D7: 2020 | E7: 940 | F7: 0 | G7: No | K7: 2 | N7: 2020 | O7: 940 | R7: =R6*S7 -> 0.095 | S7: 19 | W7: 0.25
D8: 2023 | E8: 940 | F8: 0 | G8: No | K8: 2 | N8: 2023 | O8: 940 | W8: FTF | X8: FTP | Y8: FTD | Z8: Interest | AA8: Tax
D9: 2024 | E9: 940 | F9: 0 | G9: No | K9: 2 | N9: 2019 | O9: 940 | S9: =S10+V9 -> 109332.8053 | U9: 201812 | V9: 8580.84 | AK9: =SUM(AK11:AK32) -> 80000
D10: 2019/Q2 | E10: 941 | F10: 0 | G10: Yes | J10: 2029-09-23 | K10: 2 | N10: 2022 | O10: 940 | S10: 100751.9653 | U10: 201903 | V10: 1344.76
D11: 2020/Q4 | E11: 941 | F11: 0 | G11: No | K11: 2 | N11: 2021 | O11: 940 | S11: 99407.20528 | U11: 201909 | V11: 4360.55 | AC11: 941's | AE11: Not processed | AG11: Anticipated penalties & interest | AH11: Total unprocessed | AJ11: 2019 | AK11: 13.13
D12: 2023/Q1 | E12: 941 | F12: 0 | G12: No | K12: 2 | N12: 2020/Q4 | O12: 941 | S12: 95046.65528 | U12: 201912 | V12: 2291.02 | AC12: 201812 | AD12: 8580.84 | AE12: 202012 | AF12: 4379.02 | AG12: 2434.005283 | AH12: 6813.025283 | AJ12: 2021 | AK12: 211.97
D13: 2023/Q2 | E13: 941 | F13: 0 | G13: No | K13: 2 | S13: 92755.63528 | U13: 202003 | V13: 666.01 | AC13: 201903 | AD13: 1344.76 | AE13: 202303 | AF13: 5521.39 | AG13: 2530.637083 | AH13: 8052.027083 | AJ13: 2022 | AK13: 96.26
D14: 2023/Q3 | E14: 941 | F14: 0 | G14: No | K14: 2 | S14: 92089.62528 | U14: 202012 | V14: =SUM(W14:AA14) -> 6813.025283 | W14: =0.25*AA14 -> 1094.755 | X14: =AA14*0.095 -> 416.0069 | Y14: =AA14*0.1 -> 437.902 | Z14: =((0.07/12)*19)*AA14 -> 485.3413833 | AA14: 4379.02 | AC14: 201909 | AD14: 4360.55 | AE14: 202306 | AF14: 5423.29 | AG14: 2309.417658 | AH14: 7732.707658 | AJ14: 202012 | AK14: 4379.02
D15: 2023/Q4 | E15: 941 | F15: 0 | G15: No | K15: 2 | S15: 85276.6 | U15: 202006 | V15: 331.24 | AC15: 201912 | AD15: 2291.02 | AE15: 202309 | AF15: 4519.92 | AG15: 1325.8432 | AH15: 5845.7632 | AJ15: 202303 | AK15: 5521.39
D16: 2024/Q2 | E16: 941 | F16: 0 | G16: No | K16: 2 | S16: 84945.36 | U16: 202009 | V16: 5259.25 | AC16: 202003 | AD16: 666.01 | AE16: 202312 | AF16: 4005.76 | AG16: 644.2597333 | AH16: 4650.019733 | AJ16: 202306 | AK16: 5423.29
D17: 2024/Q3 | E17: 941 | F17: 0 | G17: No | K17: 2 | S17: 79686.11 | U17: 202103 | V17: 6362.69 | AC17: 202006 | AD17: 331.24 | AJ17: 202309 | AK17: 4519.92
D18: 2024/Q4 | E18: 941 | F18: 0 | G18: No | K18: 2 | N18: 2020/Q1 | O18: 941 | S18: 73323.42 | U18: 202106 | V18: 7977.73 | AC18: 202009 | AD18: 5259.25 | AJ18: 202312 | AK18: 4005.76
D19: 2019/Q1 | E19: CIVPEN | F19: 0 | G19: No | K19: 2 | N19: 2019/Q1 | O19: 941 | S19: 65345.69 | U19: 202109 | V19: 10081.66 | AC19: 202103 | AD19: 6362.69 | AJ19: 202212 | AK19: 4196.54
D20: 2019/Q2 | E20: CIVPEN | F20: 0 | G20: No | K20: 2 | N20: 2019/Q4 | O20: 941 | S20: 55264.03 | U20: 202112 | V20: 11682.21 | AC20: 202106 | AD20: 7977.73 | AJ20: 202209 | AK20: 6066.41
D21: 2019/Q3 | E21: CIVPEN | F21: 0 | G21: No | K21: 2 | N21: 2022/Q4 | O21: 941 | S21: 43581.82 | U21: 202203 | V21: 7887.53 | AC21: 202109 | AD21: 10081.66 | AJ21: 202206 | AK21: 5960.98
D22: 2019/Q4 | E22: CIVPEN | F22: 0 | G22: No | K22: 2 | N22: 2019/Q3 | O22: 941 | S22: =S23+V22 -> 35694.29 | U22: 202206 | V22: 5960.98 | AC22: 202112 | AD22: 11682.21 | AJ22: 202203 | AK22: 7887.53
D23: 2020/Q1 | E23: CIVPEN | F23: 0 | G23: No | K23: 2 | N23: 2020/Q3 | O23: 941 | R23: Sum up | S23: =SUM(V23:V24)+S25 -> 29733.31 | U23: 202209 | V23: 6066.41 | AC23: 202203 | AD23: 7887.53 | AJ23: 202112 | AK23: 11682.21
D24: 2020/Q2 | E24: CIVPEN | F24: 0 | G24: No | K24: 2 | N24: 2022/Q2 | O24: 941 | U24: 202212 | V24: 4196.54 | AC24: 202206 | AD24: 5960.98 | AJ24: 202109 | AK24: 10081.66
D25: 2020/Q3 | E25: CIVPEN | F25: 0 | G25: No | K25: 2 | N25: 2022/Q3 | O25: 941 | R25: Newest first | S25: =SUM(AA25:AA28) -> 19470.36 | U25: 202303 | V25: =SUM(W25:AA25) -> 8052.027083 | W25: =0.25*AA25 -> 1380.3475 | X25: =AA25*0.05 -> 276.0695 | Y25: =AA25*0.1 -> 552.139 | Z25: =((0.07/12)*10)*AA25 -> 322.0810833 | AA25: 5521.39 | AC25: 202209 | AD25: 6066.41 | AJ25: 202106 | AK25: 7977.73
D26: 2020/Q4 | E26: CIVPEN | F26: 0 | G26: No | K26: 2 | N26: 2021/Q1 | O26: 941 | U26: 202306 | V26: =SUM(W26:AA26) -> 7732.707658 | W26: =0.25*AA26 -> 1355.8225 | X26: =AA26*0.035 -> 189.81515 | Y26: =AA26*0.1 -> 542.329 | Z26: =((0.07/12)*7)*AA26 -> 221.4510083 | AA26: 5423.29 | AC26: 202212 | AD26: 4196.54 | AJ26: 202103 | AK26: 1976.2
D27: 2021/Q1 | E27: CIVPEN | F27: 0 | G27: No | K27: 2 | N27: 2022/Q1 | O27: 941 | U27: 202309 | V27: =SUM(W27:AA27) -> 5845.7632 | W27: =0.15*AA27 -> 677.988 | X27: =AA27*0.02 -> 90.3984 | Y27: =AA27*0.1 -> 451.992 | Z27: =((0.07/12)*4)*AA27 -> 105.4648 | AA27: 4519.92 | AC27: 940's
D28: 2021/Q2 | E28: CIVPEN | F28: 0 | G28: No | K28: 2 | N28: 2021/Q2 | O28: 941 | U28: 202312 | V28: =SUM(W28:AA28) -> 4650.019733 | W28: =0.05*AA28 -> 200.288 | X28: =AA28*0.005 -> 20.0288 | Y28: =AA28*0.1 -> 400.576 | Z28: =((0.07/12)*1)*AA28 -> 23.36693333 | AA28: 4005.76 | AC28: 2019 | AD28: 13.13
D29: 2021/Q3 | E29: CIVPEN | F29: 0 | G29: No | K29: 2 | N29: 2021/Q3 | O29: 941 | AC29: 2021 | AD29: 211.97
D30: 2021/Q4 | E30: CIVPEN | F30: 0 | G30: No | K30: 2 | N30: 2021/Q4 | O30: 941 | U30: 2019 | V30: 13.13 | AC30: 2022 | AD30: 96.26
D31: 2022/Q1 | E31: CIVPEN | F31: 0 | G31: No | K31: 2 | U31: 2021 | V31: 211.97
D32: 2022/Q2 | E32: CIVPEN | F32: 0 | G32: No | K32: 2 | U32: 2022 | V32: 96.26
D33: 2022/Q3 | E33: CIVPEN | F33: 0 | G33: No | K33: 2 | AJ33: 201812 | AK33: 8580.84
D34: 2022/Q4 | E34: CIVPEN | F34: 0 | G34: No | K34: 2 | R34: To Pay | S34: 80000 | AJ34: 201903 | AK34: 1344.76
D35: 2023/Q1 | E35: CIVPEN | F35: 0 | G35: No | K35: 2 | R35: Balance: | S35: =S34-SUM(S36:S56) -> -133.577675 | AD35: =SUM(W14:Z14) -> 2434.005283 | AJ35: 201909 | AK35: 4360.55
D36: 2023/Q2 | E36: CIVPEN | F36: 0 | G36: No | K36: 2 | AJ36: 201912 | AK36: 2291.02
D37: 2023/Q3 | E37: CIVPEN | F37: 0 | G37: No | K37: 2 | R37: 202303 | S37: 8052.027083 | W37: Old Balances | X37: =SUM(V9:V13,V15:V24,V30:V32) -> 83370.78 | AJ37: 202003 | AK37: 666.01
D38: 2023/Q4 | E38: CIVPEN | F38: 0 | G38: No | K38: 2 | P38: =1*0.5% -> 0.005 | R38: 202306 | S38: 7732.707658 | W38: New Balances | X38: =SUM(V14,V25:V28) -> 33093.54296 | Y38: =SUM(AA25:AA28,AA14) -> 23849.38 | AJ38: 202006 | AK38: 331.24
D39: 2024/Q1 | E39: CIVPEN | F39: 0 | G39: No | K39: 2 | R39: 202309 | S39: 5845.7632 | AH39: =80000-AK9 -> 0 | AJ39: 202009 | AK39: 5259.25
D40: 2024/Q2 | E40: CIVPEN | F40: 0 | G40: No | K40: 2 | R40: 202312 | S40: 4650.019733 | AJ40: 202103 | AK40: 4386.49
D41: 2024/Q3 | E41: CIVPEN | F41: 0 | G41: No | K41: 2 | R41: 202106 | S41: 7977.73 | AF41: 202012 | AG41: 2434.005283 | AK41: =SUM(AK33:AK40) -> 27220.16
D42: 2024/Q4 | E42: CIVPEN | F42: 0 | G42: No | K42: 2 | R42: 202109 | S42: 10081.66 | AF42: 202303 | AG42: 2530.637083
D43: 2019 | E43: 940 | F43: 13 | G43: Yes | J43: 12/28/2030* | K43: 2 | R43: 202112 | S43: 11682.21 | AF43: 202306 | AG43: 2309.417658
D44: 2022 | E44: 940 | F44: 96 | G44: Yes | J44: 2033-05-08 | K44: 2 | R44: 202203 | S44: 7887.53 | AF44: 202309 | AG44: 1325.8432
D45: 2021 | E45: 940 | F45: 212 | G45: Yes | J45: 2032-07-04 | K45: 2 | R45: 202206 | S45: 5960.98 | AF45: 202312 | AG45: 644.2597333
D46: 2020/Q2 | E46: 941 | F46: 332 | G46: Yes | J46: 2031-05-03 | K46: 2 | R46: 202209 | S46: 6066.41 | AG46: =SUM(AG41:AG45) -> 9244.162958
D47: 2020/Q1 | E47: 941 | F47: 667 | G47: Yes | J47: 2030-12-02 | K47: 2 | R47: 202212 | S47: 4196.54
D48: 2019/Q1 | E48: 941 | F48: 1349 | G48: Yes | J48: 10/14/2030* | K48: 2
D49: 2019/Q4 | E49: 941 | F49: 2293 | G49: Yes | J49: 06/03/2030* | K49: 2
D50: 2022/Q4 | E50: 941 | F50: 4200 | G50: Yes | J50: 05/15/2033* | K50: 2
D51: 2019/Q3 | E51: 941 | F51: 4364 | G51: Yes | J51: 03/12/2030* | K51: 2
D52: 2020/Q3 | E52: 941 | F52: 5263 | G52: Yes | J52: 02/19/2034* | K52: 2
D53: 2022/Q2 | E53: 941 | F53: 5966 | G53: Yes | J53: 2033-04-10 | K53: 2
D54: 2022/Q3 | E54: 941 | F54: 6072 | G54: Yes | J54: 05/15/2033* | K54: 2
D55: 2021/Q1 | E55: 941 | F55: 6367 | G55: Yes | J55: 2031-08-30 | K55: 2
D56: 2022/Q1 | E56: 941 | F56: 7894 | G56: Yes | J56: 05/22/2033* | K56: 2
D57: 2021/Q2 | E57: 941 | F57: 7984 | G57: Yes | J57: 11/15/2031* | K57: 2
D58: 2021/Q3 | E58: 941 | F58: 10090 | G58: Yes | J58: 03/14/2032* | K58: 2
D59: 2021/Q4 | E59: 941 | F59: 11692 | G59: Yes | J59: 09/19/2032* | K59: 2
AA66: 940 2019 | AB66: 13.13
AA67: 940 2021 | AB67: 211.97
AA68: 940 2022 | AB68: 96.26
AA69: 941 2020 4th | AB69: 4379.02
AA70: 941 2023 3rd | AB70: 5521.39
AA71: 941 2023 2nd | AB71: 5423.29
AA72: 941 2023 3rd | AB72: 4519.92
AA73: 941 2023 4th | AB73: 4005.76
AA74: 941 2022 4th | AB74: 4196.54
AA75: 941 2022 3rd | AB75: 6066.41
AA76: 941 2022 2nd | AB76: 5960.98
AA77: 941 2022 1st | AB77: 7887.53
AA78: 941 2021 4th | AB78: 11682.21
AA79: 941 2021 3rd | AB79: 10081.66
AA80: 941 2021 2nd | AB80: 7977.73
AA81: 941 2021 1st | AB81: 1976.2
AB82: =SUM(AB66:AB81) -> 80000
